[Event "GrandPrix_29.05"]
[Site "Chess.com"]
[Date "2020.05.29"]
[Round "2"]
[White "swisspower96"]
[Black "SpasKozhuharov"]
[Result "0-1"]
[WhiteElo "2214"]
[BlackElo "2262"]
[TimeControl "600+2"]
[EndTime "9:59:32 PDT"]
[Termination "SpasKozhuharov won by resignation"]

1. d4 {[%clk 0:10:01.9]} 1... d5 {[%clk 0:09:59.9]} 2. c4 {[%clk 0:10:02.6]}
2... dxc4 {[%clk 0:10:00.4]} 3. Nf3 {[%clk 0:10:03.1]} 3... Nf6 {[%clk
0:09:57.9]} 4. e3 {[%clk 0:10:04.1]} 4... e6 {[%clk 0:09:58.7]} 5. Bxc4 {[%clk
0:10:05.1]} 5... a6 {[%clk 0:09:59.1]} 6. O-O {[%clk 0:10:06.2]} 6... b5 {[%clk
0:09:59.6]} 7. Bd3 {[%clk 0:10:04.7]} 7... Bb7 {[%clk 0:10:01.5]} 8. a4 {[%clk
0:10:05.4]} 8... b4 {[%clk 0:10:03]} 9. Nbd2 {[%clk 0:09:57.1]} 9... c5 {[%clk
0:10:02.2]} 10. a5 {[%clk 0:09:54.5]} 10... Nbd7 {[%clk 0:10:00.5]} 11. Nc4
{[%clk 0:09:53.4]} 11... Be7 {[%clk 0:09:59.2]} 12. Qe2 {[%clk 0:09:40.7]} 12...
O-O {[%clk 0:09:49.6]} 13. Nfe5 {[%clk 0:09:27]} 13... cxd4 {[%clk 0:09:38]} 14.
exd4 {[%clk 0:09:24.6]} 14... Rc8 {[%clk 0:08:32]} 15. Rd1 {[%clk 0:08:56.9]}
15... Nd5 {[%clk 0:08:21.6]} 16. Bd2 {[%clk 0:07:47.7]} 16... N7f6 {[%clk
0:07:54.4]} 17. Rac1 {[%clk 0:07:01.8]} 17... Rc7 {[%clk 0:07:43.2]} 18. Ra1
{[%clk 0:06:34.3]} 18... Qa8 {[%clk 0:07:25.2]} 19. Nb6 {[%clk 0:06:26.6]} 19...
Qa7 {[%clk 0:07:25.4]} 20. Nec4 {[%clk 0:06:26.9]} 20... Nd7 {[%clk 0:07:09.5]}
21. Nxd5 {[%clk 0:05:46.6]} 21... Bxd5 {[%clk 0:07:05.4]} 22. Bf4 {[%clk
0:05:40.9]} 22... Rcc8 {[%clk 0:06:34.6]} 23. Ne3 {[%clk 0:04:59.6]} 23... Bb7
{[%clk 0:06:23.4]} 24. Nf5 {[%clk 0:04:51.1]} 24... Rfe8 {[%clk 0:05:22.1]} 25.
Nxe7+ {[%clk 0:04:44.6]} 25... Rxe7 {[%clk 0:05:24]} 26. Bd6 {[%clk 0:04:35.3]}
26... Ree8 {[%clk 0:05:22.7]} 27. Bxb4 {[%clk 0:04:36.3]} 27... Bxg2 {[%clk
0:04:53.7]} 28. Kxg2 {[%clk 0:03:36.8]} 28... Qb7+ {[%clk 0:04:53.6]} 29. Qe4
{[%clk 0:03:38]} 29... Qxb4 {[%clk 0:04:54.4]} 30. Qxh7+ {[%clk 0:03:38.7]}
30... Kf8 {[%clk 0:04:55.4]} 31. Bxa6 {[%clk 0:03:33.5]} 31... Nf6 {[%clk
0:04:51.4]} 32. Qh4 {[%clk 0:03:22.6]} 32... Ra8 {[%clk 0:04:43.9]} 33. Be2
{[%clk 0:03:07.9]} 33... Rxa5 {[%clk 0:04:41.4]} 34. Rxa5 {[%clk 0:03:01.8]}
34... Qxa5 {[%clk 0:04:42]} 35. Rd3 {[%clk 0:02:30.4]} 35... Qb4 {[%clk
0:04:25.4]} 36. b3 {[%clk 0:02:12.3]} 36... Rd8 {[%clk 0:04:06.7]} 37. Qf4
{[%clk 0:01:58.4]} 37... Nd5 {[%clk 0:03:57.4]} 38. Qh4 {[%clk 0:01:46.2]} 38...
Qd6 {[%clk 0:03:42.5]} 39. Rf3 {[%clk 0:01:36]} 39... Nf6 {[%clk 0:03:30.9]} 40.
Rg3 {[%clk 0:01:12.6]} 40... Qxd4 {[%clk 0:02:56.2]} 41. Qh8+ {[%clk 0:00:57.6]}
41... Ng8 {[%clk 0:02:49.3]} 42. Bd3 {[%clk 0:00:32.4]} 42... g6 {[%clk
0:02:37.7]} 43. Qxd4 {[%clk 0:00:21.7]} 43... Rxd4 {[%clk 0:02:39.4]} 44. Bc4
{[%clk 0:00:19.1]} 44... Nf6 {[%clk 0:02:38.1]} 45. Rc3 {[%clk 0:00:20.2]} 45...
Rd2 {[%clk 0:02:37]} 46. Kf3 {[%clk 0:00:17.8]} 46... Ke7 {[%clk 0:02:33.5]} 47.
b4 {[%clk 0:00:16.8]} 47... Kd6 {[%clk 0:02:07.5]} 48. b5 {[%clk 0:00:15.3]}
48... Rb2 {[%clk 0:02:02.9]} 49. Bf1 {[%clk 0:00:16.2]} 49... Nd5 {[%clk
0:01:54.7]} 50. Rc6+ {[%clk 0:00:17.2]} 50... Ke5 {[%clk 0:01:55.1]} 51. Ra6
{[%clk 0:00:12.6]} 51... g5 {[%clk 0:01:43.8]} 52. h3 {[%clk 0:00:10]} 52... f5
{[%clk 0:01:42.5]} 53. Ra3 {[%clk 0:00:07.8]} 53... Nc7 {[%clk 0:01:38.8]} 54.
Rc3 {[%clk 0:00:07]} 54... Nd5 {[%clk 0:01:33.5]} 55. Ra3 {[%clk 0:00:08.2]}
55... Kd4 {[%clk 0:01:26.9]} 56. Ra6 {[%clk 0:00:06.5]} 56... e5 {[%clk
0:01:26.6]} 57. Ra4+ {[%clk 0:00:06.9]} 57... Kc5 {[%clk 0:01:26.5]} 58. Rc4+
{[%clk 0:00:07.8]} 58... Kd6 {[%clk 0:01:22.9]} 59. Rc6+ {[%clk 0:00:08.9]}
59... Kd7 {[%clk 0:01:22.9]} 60. Bc4 {[%clk 0:00:10.3]} 60... e4+ {[%clk
0:01:22.4]} 61. Kg3 {[%clk 0:00:10.5]} 61... Nc7 {[%clk 0:01:06.1]} 62. Rg6
{[%clk 0:00:09.5]} 62... f4+ {[%clk 0:01:06.9]} 63. Kg2 {[%clk 0:00:09.1]} 63...
e3 {[%clk 0:01:08]} 64. b6 {[%clk 0:00:08.5]} 64... Ne8 {[%clk 0:00:59.9]} 65.
Kf1 {[%clk 0:00:06.2]} 65... Rxf2+ {[%clk 0:00:59.4]} 66. Ke1 {[%clk 0:00:07.7]}
66... Rb2 {[%clk 0:01:00.8]} 67. Rxg5 {[%clk 0:00:08.5]} 67... Rxb6 {[%clk
0:00:58.7]} 68. Bb5+ {[%clk 0:00:09.2]} 68... Kd8 {[%clk 0:00:52.8]} 69. Bxe8
{[%clk 0:00:11.1]} 69... Kxe8 {[%clk 0:00:53.3]} 70. Ke2 {[%clk 0:00:12.3]}
70... Rb2+ {[%clk 0:00:52.7]} 71. Kd3 {[%clk 0:00:13.1]} 71... Rf2 {[%clk
0:00:37.4]} 72. h4 {[%clk 0:00:13.2]} 72... Ke7 {[%clk 0:00:36.7]} 73. h5 {[%clk
0:00:14.6]} 73... Kf6 {[%clk 0:00:37.9]} 74. Rg6+ {[%clk 0:00:15.4]} 74... Kf5
{[%clk 0:00:38.5]} 75. Rg8 {[%clk 0:00:16.9]} 75... Rd2+ {[%clk 0:00:35.7]} 76.
Kc3 {[%clk 0:00:17.4]} 76... Rh2 {[%clk 0:00:36.5]} 77. Rh8 {[%clk 0:00:17.4]}
77... Ke4 {[%clk 0:00:34.4]} 78. h6 {[%clk 0:00:16.3]} 78... Kf3 {[%clk
0:00:35.4]} 79. h7 {[%clk 0:00:17.7]} 79... Rh1 {[%clk 0:00:30.6]} 80. Kd3
{[%clk 0:00:16.4]} 80... e2 {[%clk 0:00:28]} 81. Re8 {[%clk 0:00:16.6]} 81...
Rxh7 {[%clk 0:00:25.9]} 0-1

[Event "GrandPrix_29.05"]
[Site "Chess.com"]
[Date "2020.05.29"]
[Round "2"]
[White "Cocolino12"]
[Black "rusuvlad95"]
[Result "0-1"]
[WhiteElo "2350"]
[BlackElo "2110"]
[TimeControl "600+2"]
[EndTime "9:59:37 PDT"]
[Termination "rusuvlad95 won by resignation"]

1. e4 {[%clk 0:10:01.9]} 1... e5 {[%clk 0:10:00.5]} 2. Nf3 {[%clk 0:10:02.4]}
2... Nc6 {[%clk 0:10:01.5]} 3. Nc3 {[%clk 0:10:03.8]} 3... Nf6 {[%clk
0:10:00.9]} 4. Bb5 {[%clk 0:10:03.7]} 4... Bb4 {[%clk 0:09:59.7]} 5. O-O {[%clk
0:09:59.8]} 5... d6 {[%clk 0:09:48.5]} 6. d4 {[%clk 0:09:45.6]} 6... O-O {[%clk
0:09:18.7]} 7. Bg5 {[%clk 0:08:31.3]} 7... Bxc3 {[%clk 0:09:06.1]} 8. bxc3
{[%clk 0:08:30.1]} 8... h6 {[%clk 0:09:06.7]} 9. Bh4 {[%clk 0:08:08.7]} 9... Qe7
{[%clk 0:08:57.3]} 10. Re1 {[%clk 0:07:59.7]} 10... Bg4 {[%clk 0:08:49.6]} 11.
h3 {[%clk 0:07:58.6]} 11... Bh5 {[%clk 0:08:48.7]} 12. g4 {[%clk 0:07:14.9]}
12... Bg6 {[%clk 0:08:24.5]} 13. d5 {[%clk 0:07:10.9]} 13... Nb8 {[%clk
0:08:19.9]} 14. Bd3 {[%clk 0:07:09.2]} 14... Nbd7 {[%clk 0:08:14.3]} 15. Bg3
{[%clk 0:06:50.2]} 15... Nc5 {[%clk 0:08:12.6]} 16. Nd2 {[%clk 0:06:42.4]} 16...
c6 {[%clk 0:07:39.1]} 17. c4 {[%clk 0:06:39.9]} 17... h5 {[%clk 0:06:53.3]} 18.
f3 {[%clk 0:06:30.1]} 18... Nfd7 {[%clk 0:06:51.5]} 19. Nf1 {[%clk 0:06:21.4]}
19... Na4 {[%clk 0:06:25.1]} 20. Ne3 {[%clk 0:06:12.4]} 20... Qf6 {[%clk
0:06:15.5]} 21. Nf5 {[%clk 0:05:39.4]} 21... Bxf5 {[%clk 0:05:59.6]} 22. exf5
{[%clk 0:05:41.3]} 22... cxd5 {[%clk 0:05:59.8]} 23. cxd5 {[%clk 0:05:40.9]}
23... hxg4 {[%clk 0:05:45.4]} 24. fxg4 {[%clk 0:05:29.6]} 24... Nc3 {[%clk
0:05:46.4]} 25. Qd2 {[%clk 0:05:23.9]} 25... e4 {[%clk 0:05:41]} 26. Bf1 {[%clk
0:05:13.8]} 26... Ne5 {[%clk 0:05:35.2]} 27. Bg2 {[%clk 0:05:04.3]} 27... Rac8
{[%clk 0:05:09]} 28. Kh1 {[%clk 0:04:48.2]} 28... Nf3 {[%clk 0:04:47.8]} 29.
Bxf3 {[%clk 0:04:42.7]} 29... exf3 {[%clk 0:04:47.3]} 30. Rf1 {[%clk 0:04:27.3]}
30... Ne4 {[%clk 0:04:08.2]} 31. Qf4 {[%clk 0:04:22.2]} 31... Nxg3+ {[%clk
0:04:01]} 32. Qxg3 {[%clk 0:04:24.1]} 32... Rxc2 {[%clk 0:04:00]} 33. Qxf3
{[%clk 0:04:16.5]} 33... Rc3 {[%clk 0:03:34]} 34. Qg2 {[%clk 0:04:08.9]} 34...
Qh4 {[%clk 0:03:19.5]} 35. Rf3 {[%clk 0:03:52.9]} 35... Rfc8 {[%clk 0:03:17.4]}
36. Rxc3 {[%clk 0:03:49.4]} 36... Rxc3 {[%clk 0:03:17]} 37. Kh2 {[%clk
0:03:50.7]} 37... Qf6 {[%clk 0:02:54.9]} 38. Re1 {[%clk 0:03:45.6]} 38... Qd4
{[%clk 0:02:16.6]} 39. Kh1 {[%clk 0:02:26.6]} 39... Rd3 {[%clk 0:01:46.1]} 40.
Rf1 {[%clk 0:02:12.8]} 40... Rd2 {[%clk 0:01:29.5]} 41. Qf3 {[%clk 0:02:13.4]}
41... Qe5 {[%clk 0:01:24.7]} 42. Rf2 {[%clk 0:02:03.4]} 42... Rxd5 {[%clk
0:01:18]} 43. f6 {[%clk 0:01:58.5]} 43... Rd1+ {[%clk 0:00:55.5]} 44. Kg2 {[%clk
0:01:57.9]} 44... Qe1 {[%clk 0:00:54.3]} 45. Kg3 {[%clk 0:01:48.8]} 45... g5
{[%clk 0:00:48.1]} 46. Qf5 {[%clk 0:01:43]} 46... Qe3+ {[%clk 0:00:44.1]} 47.
Kg2 {[%clk 0:01:41.4]} 47... Rd2 {[%clk 0:00:26.1]} 48. Qc8+ {[%clk 0:01:32.6]}
48... Kh7 {[%clk 0:00:26.9]} 49. Rxd2 {[%clk 0:01:20.9]} 49... Qxd2+ {[%clk
0:00:28.8]} 50. Kg3 {[%clk 0:01:21.8]} 50... Qf4+ {[%clk 0:00:29.1]} 51. Kg2
{[%clk 0:01:22.3]} 51... Qe4+ {[%clk 0:00:28.6]} 52. Kg3 {[%clk 0:01:21.6]}
52... Qd3+ {[%clk 0:00:21.9]} 53. Kg2 {[%clk 0:01:20]} 53... Qd5+ {[%clk
0:00:23]} 54. Kg3 {[%clk 0:01:18.7]} 54... Kg6 {[%clk 0:00:17]} 55. Qh8 {[%clk
0:01:14.3]} 55... Qe5+ {[%clk 0:00:16.1]} 56. Kg2 {[%clk 0:01:13.8]} 56... Qxf6
{[%clk 0:00:16.9]} 57. Qg8+ {[%clk 0:01:13.1]} 57... Qg7 {[%clk 0:00:18.2]} 58.
Qc8 {[%clk 0:01:12.6]} 58... Qb2+ {[%clk 0:00:18.9]} 59. Kg3 {[%clk 0:01:13.5]}
59... Qa3+ {[%clk 0:00:17.7]} 60. Kg2 {[%clk 0:01:11.4]} 60... Qxa2+ {[%clk
0:00:18.2]} 61. Kg3 {[%clk 0:01:12]} 61... Qe6 {[%clk 0:00:17.4]} 62. Qxb7
{[%clk 0:01:05.4]} 62... a5 {[%clk 0:00:15]} 63. Qb1+ {[%clk 0:01:03.6]} 63...
Kh6 {[%clk 0:00:15.3]} 64. Qb8 {[%clk 0:00:55.4]} 64... Qf6 {[%clk 0:00:11.5]}
65. Qa8 {[%clk 0:00:48.3]} 65... Qf4+ {[%clk 0:00:10]} 66. Kg2 {[%clk
0:00:48.8]} 66... a4 {[%clk 0:00:09.5]} 67. Qh8+ {[%clk 0:00:49.1]} 67... Kg6
{[%clk 0:00:10.9]} 68. Qg8+ {[%clk 0:00:50.2]} 68... Kf6 {[%clk 0:00:12.2]} 69.
Qd8+ {[%clk 0:00:49.8]} 69... Ke5 {[%clk 0:00:12.1]} 70. Qe8+ {[%clk 0:00:48.9]}
70... Kf6 {[%clk 0:00:13.4]} 71. Qd8+ {[%clk 0:00:49]} 71... Kg7 {[%clk
0:00:14.8]} 72. Qa8 {[%clk 0:00:46.3]} 72... Qd2+ {[%clk 0:00:10.2]} 73. Kg3
{[%clk 0:00:46.6]} 73... Qd3+ {[%clk 0:00:10.9]} 74. Kg2 {[%clk 0:00:47]} 74...
a3 {[%clk 0:00:12.3]} 75. Qa5 {[%clk 0:00:45.1]} 75... d5 {[%clk 0:00:10.3]} 76.
Qd8 {[%clk 0:00:44]} 76... Qd2+ {[%clk 0:00:10.4]} 77. Kg3 {[%clk 0:00:43.2]}
77... a2 {[%clk 0:00:11.8]} 78. Qa8 {[%clk 0:00:41.7]} 78... Qe1+ {[%clk
0:00:10.1]} 79. Kf3 {[%clk 0:00:41.8]} 79... a1=Q {[%clk 0:00:11.1]} 80. Qxd5
{[%clk 0:00:30.5]} 80... Qf1+ {[%clk 0:00:09.4]} 81. Kg3 {[%clk 0:00:29.9]}
81... Qc3+ {[%clk 0:00:10.1]} 0-1

[Event "GrandPrix_29.05"]
[Site "Chess.com"]
[Date "2020.05.29"]
[Round "2"]
[White "1stSecond"]
[Black "bedgasm"]
[Result "1-0"]
[WhiteElo "2608"]
[BlackElo "2253"]
[TimeControl "600+2"]
[EndTime "9:59:44 PDT"]
[Termination "1stSecond won by resignation"]

1. d4 {[%clk 0:09:58.9]} 1... Nf6 {[%clk 0:09:59.9]} 2. Nf3 {[%clk 0:09:55]}
2... d5 {[%clk 0:10:00.2]} 3. c4 {[%clk 0:09:49.8]} 3... g6 {[%clk 0:09:59.3]}
4. cxd5 {[%clk 0:09:41.4]} 4... Nxd5 {[%clk 0:09:58.7]} 5. h4 {[%clk 0:09:42.6]}
5... h6 {[%clk 0:09:54.7]} 6. e4 {[%clk 0:09:01.4]} 6... Nb6 {[%clk 0:09:51.8]}
7. h5 {[%clk 0:09:02.7]} 7... g5 {[%clk 0:09:51.2]} 8. Be3 {[%clk 0:08:46.3]}
8... Bg7 {[%clk 0:09:46]} 9. Nc3 {[%clk 0:08:45.1]} 9... Nc6 {[%clk 0:09:39.4]}
10. d5 {[%clk 0:08:44.6]} 10... Ne5 {[%clk 0:09:11.5]} 11. Bb5+ {[%clk
0:07:33.4]} 11... c6 {[%clk 0:08:12.9]} 12. Nxe5 {[%clk 0:07:09.1]} 12... cxb5
{[%clk 0:08:09.1]} 13. Bd4 {[%clk 0:06:56.7]} 13... b4 {[%clk 0:06:52.3]} 14.
Ne2 {[%clk 0:06:41.4]} 14... O-O {[%clk 0:06:22]} 15. Nf3 {[%clk 0:06:34.1]}
15... e5 {[%clk 0:06:10.5]} 16. Bc5 {[%clk 0:06:28.6]} 16... Re8 {[%clk
0:04:26.6]} 17. Bxb4 {[%clk 0:06:27.8]} 17... f5 {[%clk 0:04:24]} 18. d6 {[%clk
0:04:55]} 18... fxe4 {[%clk 0:04:10.6]} 19. Nd2 {[%clk 0:04:55.6]} 19... Nd5
{[%clk 0:03:54.9]} 20. Nxe4 {[%clk 0:04:53.1]} 20... Nf4 {[%clk 0:03:41.1]} 21.
O-O {[%clk 0:04:06.6]} 21... a5 {[%clk 0:03:37]} 22. Bc5 {[%clk 0:04:00.2]}
22... Nxh5 {[%clk 0:03:15.6]} 23. N2c3 {[%clk 0:03:34.6]} 23... Nf4 {[%clk
0:03:12.5]} 24. Nd5 {[%clk 0:03:33.3]} 24... Nxd5 {[%clk 0:02:55.3]} 25. Qxd5+
{[%clk 0:03:35.2]} 25... Kh8 {[%clk 0:02:42.1]} 26. Rad1 {[%clk 0:03:32.5]}
26... Bd7 {[%clk 0:02:35.9]} 27. Qxb7 {[%clk 0:03:11]} 27... Rb8 {[%clk
0:02:28.7]} 28. Qc7 {[%clk 0:03:11.8]} 28... Rxb2 {[%clk 0:02:22.3]} 29. Rb1
{[%clk 0:03:07.9]} 29... Re2 {[%clk 0:02:02.4]} 30. Rfe1 {[%clk 0:02:48.7]}
30... Rxe1+ {[%clk 0:01:57.8]} 31. Rxe1 {[%clk 0:02:50.6]} 31... Qxc7 {[%clk
0:01:52]} 32. dxc7 {[%clk 0:02:52.5]} 32... Rc8 {[%clk 0:01:48.3]} 33. Bd6
{[%clk 0:02:17.6]} 33... Kg8 {[%clk 0:01:37.8]} 34. Nc5 {[%clk 0:01:52.1]} 34...
Bf5 {[%clk 0:01:33.6]} 35. f3 {[%clk 0:01:25]} 35... Kf7 {[%clk 0:01:25.7]} 36.
g4 {[%clk 0:01:25.5]} 36... Be6 {[%clk 0:01:24.3]} 37. Rb1 {[%clk 0:01:17.4]}
37... e4 {[%clk 0:00:40.4]} 38. Nxe4 {[%clk 0:00:52]} 38... Bd4+ {[%clk
0:00:35.8]} 39. Kg2 {[%clk 0:00:52.4]} 39... Bxa2 {[%clk 0:00:33.5]} 40. Rb5
{[%clk 0:00:53.5]} 40... Be6 {[%clk 0:00:22.7]} 41. Rxa5 {[%clk 0:00:47.2]}
41... Bb6 {[%clk 0:00:22.4]} 42. Rb5 {[%clk 0:00:48.2]} 42... Bxc7 {[%clk
0:00:22.1]} 43. Rb7 {[%clk 0:00:48.2]} 43... Bd5 {[%clk 0:00:23]} 44. Rxc7+
{[%clk 0:00:47.8]} 44... Rxc7 {[%clk 0:00:23.3]} 45. Bxc7 {[%clk 0:00:49.7]}
45... Kg6 {[%clk 0:00:18.6]} 46. Ng3 {[%clk 0:00:46.6]} 46... Bb3 {[%clk
0:00:10.5]} 47. Kf2 {[%clk 0:00:47.2]} 47... Bd1 {[%clk 0:00:11.3]} 48. Bd8
{[%clk 0:00:40.6]} 48... Bb3 {[%clk 0:00:10.5]} 49. Nh5 {[%clk 0:00:37]} 49...
Bd5 {[%clk 0:00:09.4]} 50. Kg3 {[%clk 0:00:38]} 50... Bc6 {[%clk 0:00:10.1]} 51.
Nf6 {[%clk 0:00:21]} 51... Bb7 {[%clk 0:00:09.1]} 52. Nd7 {[%clk 0:00:21.9]}
52... Ba8 {[%clk 0:00:08.4]} 53. Ne5+ {[%clk 0:00:22.9]} 53... Kg7 {[%clk
0:00:07.2]} 54. Ba5 {[%clk 0:00:19.4]} 54... Bd5 {[%clk 0:00:06.6]} 55. Bc3
{[%clk 0:00:20.6]} 55... Kh7 {[%clk 0:00:06.6]} 56. Nd7 {[%clk 0:00:21.5]} 56...
Kg6 {[%clk 0:00:06.1]} 57. f4 {[%clk 0:00:17.5]} 57... gxf4+ {[%clk 0:00:05.5]}
58. Kxf4 {[%clk 0:00:19.4]} 58... Bb7 {[%clk 0:00:05.7]} 59. Ne5+ {[%clk
0:00:15.8]} 59... Kh7 {[%clk 0:00:04.5]} 60. Kf5 {[%clk 0:00:13.7]} 60... Bc8+
{[%clk 0:00:05.7]} 61. Kf6 {[%clk 0:00:15.2]} 61... Bb7 {[%clk 0:00:04.5]} 62.
Bd2 {[%clk 0:00:06.8]} 62... Bc8 {[%clk 0:00:04.6]} 63. Bf4 {[%clk 0:00:07.2]}
63... Bb7 {[%clk 0:00:05]} 64. Nf7 {[%clk 0:00:08.4]} 64... h5 {[%clk
0:00:04.2]} 65. gxh5 {[%clk 0:00:08.1]} 65... Bf3 {[%clk 0:00:04.4]} 66. h6
{[%clk 0:00:07.4]} 66... Be4 {[%clk 0:00:04.2]} 67. Nd6 {[%clk 0:00:05.5]} 67...
Bd3 {[%clk 0:00:03.6]} 68. Nc8 {[%clk 0:00:06]} 68... Be4 {[%clk 0:00:03.7]} 69.
Nb6 {[%clk 0:00:06.3]} 69... Bd3 {[%clk 0:00:03.3]} 70. Nd7 {[%clk 0:00:07.2]}
70... Bc4 {[%clk 0:00:02]} 71. Ke7 {[%clk 0:00:07]} 71... Kg6 {[%clk 0:00:02.5]}
72. Ne5+ {[%clk 0:00:07.8]} 72... Kh7 {[%clk 0:00:02.4]} 73. Nxc4 {[%clk
0:00:09]} 1-0